[Event "Titled Tuesday Blitz December 27 Late 2022"]
[White "Lenderman, Aleksandr"]
[Black "Vlassov, Nikolai"]
[WhiteFideId "2021285"]
[BlackFideId "4103360"]
[WhiteElo "2572"]
[BlackElo "2283"]
[Result "1/2-1/2"]
[Round "03"]
[TimeControl "180+2"]
[Date "2022.12.27"]
[WhiteClock "0:00:39"]
[BlackClock "0:00:15"]

1. Nf3 {[%clk 0:03:00]}  c5 {[%clk 0:02:59]} 2. d4 {[%clk 0:02:59]}  cxd4 {[%clk 0:02:59]} 3. c3 {[%clk 0:03:00]}  dxc3 {[%clk 0:02:59]} 4. Nxc3 {[%clk 0:03:01]}  g6 {[%clk 0:02:49]} 5. e4 {[%clk 0:03:00]}  Bg7 {[%clk 0:02:49]} 6. e5 {[%clk 0:03:00]}  Nc6 {[%clk 0:02:35]} 7. Bf4 {[%clk 0:02:55]}  Qa5 {[%clk 0:02:22]} 8. Qd5 {[%clk 0:02:52]}  Nh6 {[%clk 0:01:50]} 9. Qxa5 {[%clk 0:02:47]}  Nxa5 {[%clk 0:01:50]} 10. Nd5 {[%clk 0:02:46]}  Kf8 {[%clk 0:01:39]} 11. b4 {[%clk 0:02:30]}  Nc6 {[%clk 0:01:38]} 12. b5 {[%clk 0:02:31]}  Na5 {[%clk 0:01:34]} 13. Bd2 {[%clk 0:02:28]}  b6 {[%clk 0:01:34]} 14. Bb4 {[%clk 0:02:27]}  d6 {[%clk 0:01:32]} 15. Rc1 {[%clk 0:02:03]}  Bb7 {[%clk 0:00:44]} 16. Nxe7 {[%clk 0:01:43]}  Kxe7 {[%clk 0:00:34]} 17. Bxa5 {[%clk 0:01:43]}  bxa5 {[%clk 0:00:31]} 18. Rc7+ {[%clk 0:01:42]}  Kd8 {[%clk 0:00:26]} 19. Rxb7 {[%clk 0:01:43]}  dxe5 {[%clk 0:00:25]} 20. Be2 {[%clk 0:01:28]}  Kc8 {[%clk 0:00:23]} 21. Re7 {[%clk 0:01:25]}  Bf6 {[%clk 0:00:20]} 22. Rxe5 {[%clk 0:01:25]}  Bxe5 {[%clk 0:00:20]} 23. Nxe5 {[%clk 0:01:26]}  Re8 {[%clk 0:00:18]} 24. f4 {[%clk 0:01:26]}  Kc7 {[%clk 0:00:18]} 25. Kf2 {[%clk 0:01:25]}  Rad8 {[%clk 0:00:18]} 26. Rc1+ {[%clk 0:01:25]}  Kb6 {[%clk 0:00:18]} 27. Rc6+ {[%clk 0:01:25]}  Kb7 {[%clk 0:00:18]} 28. Bf3 {[%clk 0:01:26]}  Kb8 {[%clk 0:00:18]} 29. Ra6 {[%clk 0:01:23]}  Rxe5 {[%clk 0:00:17]} 30. fxe5 {[%clk 0:01:23]}  Rd2+ {[%clk 0:00:17]} 31. Ke3 {[%clk 0:01:14]}  Rxa2 {[%clk 0:00:18]} 32. e6 {[%clk 0:01:15]}  Nf5+ {[%clk 0:00:18]} 33. Kf4 {[%clk 0:01:15]}  fxe6 {[%clk 0:00:18]} 34. Rxe6 {[%clk 0:01:14]}  a4 {[%clk 0:00:19]} 35. Re8+ {[%clk 0:01:09]}  Kc7 {[%clk 0:00:19]} 36. Rh8 {[%clk 0:01:10]}  h5 {[%clk 0:00:18]} 37. Rh7+ {[%clk 0:01:10]}  Kb6 {[%clk 0:00:17]} 38. Bc6 {[%clk 0:01:06]}  Nd4 {[%clk 0:00:17]} 39. Rb7+ {[%clk 0:01:06]}  Kc5 {[%clk 0:00:17]} 40. Rxa7 {[%clk 0:00:58]}  Nxc6 {[%clk 0:00:17]} 41. bxc6 {[%clk 0:00:59]}  Kxc6 {[%clk 0:00:18]} 42. g3 {[%clk 0:00:59]}  Rxh2 {[%clk 0:00:16]} 43. Rxa4 {[%clk 0:00:57]}  h4 {[%clk 0:00:16]} 44. g4 {[%clk 0:00:52]}  Rg2 {[%clk 0:00:15]} 45. Ra6+ {[%clk 0:00:44]}  Kd7 {[%clk 0:00:15]} 46. Rxg6 {[%clk 0:00:45]}  h3 {[%clk 0:00:16]} 47. Rh6 {[%clk 0:00:39]}  h2 {[%clk 0:00:16]} 48. Kf3 {[%clk 0:00:40]}  Ra2 {[%clk 0:00:15]} 49. Kf4 {[%clk 0:00:35]}  Ke7 {[%clk 0:00:16]} 50. Kg5 {[%clk 0:00:36]}  Kf7 {[%clk 0:00:15]} 51. Rh7+ {[%clk 0:00:36]}  Kg8 {[%clk 0:00:16]} 52. Rh3 {[%clk 0:00:36]}  Ra5+ {[%clk 0:00:15]} 53. Kf4 {[%clk 0:00:36]}  Ra2 {[%clk 0:00:15]} 54. Kg3 {[%clk 0:00:35]}  Kg7 {[%clk 0:00:14]} 55. Rxh2 {[%clk 0:00:36]}  Rxh2 {[%clk 0:00:14]} 56. Kxh2 {[%clk 0:00:37]}  Kg6 {[%clk 0:00:14]} 57. Kg1 {[%clk 0:00:38]}  Kg5 {[%clk 0:00:14]} 58. Kf1 {[%clk 0:00:39]}  Kxg4 {[%clk 0:00:15]} 1/2-1/2


[Site "https://www.chess.com"]

[Event "Titled Tuesday Blitz December 27 Late 2022"]
[White "Liu, Casper"]
[Black "Putnam, Liam"]
[WhiteFideId "1454153"]
[BlackFideId "30938279"]
[WhiteElo "2278"]
[BlackElo "2285"]
[Result "0-1"]
[Round "03"]
[TimeControl "180+2"]
[Date "2022.12.27"]
[WhiteClock "0:00:10"]
[BlackClock "0:00:10"]

1. b3 {[%clk 0:02:50]}  e5 {[%clk 0:02:58]} 2. Bb2 {[%clk 0:02:50]}  Nc6 {[%clk 0:02:59]} 3. g3 {[%clk 0:02:50]}  d5 {[%clk 0:02:58]} 4. Bg2 {[%clk 0:02:51]}  Nf6 {[%clk 0:02:54]} 5. c4 {[%clk 0:02:51]}  Be6 {[%clk 0:02:36]} 6. d3 {[%clk 0:02:44]}  h5 {[%clk 0:02:34]} 7. Nf3 {[%clk 0:02:39]}  e4 {[%clk 0:02:25]} 8. dxe4 {[%clk 0:02:36]}  Bb4+ {[%clk 0:02:11]} 9. Bc3 {[%clk 0:02:31]}  dxc4 {[%clk 0:01:54]} 10. Qc1 {[%clk 0:01:41]}  cxb3 {[%clk 0:01:44]} 11. Ng5 {[%clk 0:01:35]}  bxa2 {[%clk 0:01:35]} 12. Nd2 {[%clk 0:01:29]}  Bxc3 {[%clk 0:01:23]} 13. Qxc3 {[%clk 0:01:30]}  Qd4 {[%clk 0:01:24]} 14. Qc1 {[%clk 0:01:06]}  Rd8 {[%clk 0:01:09]} 15. Nxe6 {[%clk 0:00:50]}  fxe6 {[%clk 0:01:09]} 16. Rxa2 {[%clk 0:00:48]}  h4 {[%clk 0:00:53]} 17. O-O {[%clk 0:00:48]}  hxg3 {[%clk 0:00:48]} 18. hxg3 {[%clk 0:00:48]}  Qe5 {[%clk 0:00:45]} 19. Rd1 {[%clk 0:00:31]}  Qh5 {[%clk 0:00:39]} 20. Nf1 {[%clk 0:00:31]}  O-O {[%clk 0:00:37]} 21. Rad2 {[%clk 0:00:28]}  Rxd2 {[%clk 0:00:34]} 22. Rxd2 {[%clk 0:00:26]}  Ng4 {[%clk 0:00:31]} 23. Bf3 {[%clk 0:00:25]}  Nce5 {[%clk 0:00:29]} 24. Qc3 {[%clk 0:00:19]}  c6 {[%clk 0:00:23]} 25. Qb3 {[%clk 0:00:12]}  Qg6 {[%clk 0:00:21]} 26. Rd6 {[%clk 0:00:08]}  Qf7 {[%clk 0:00:16]} 27. Qxe6 {[%clk 0:00:07]}  Qxe6 {[%clk 0:00:16]} 28. Rxe6 {[%clk 0:00:07]}  Nxf3+ {[%clk 0:00:16]} 29. exf3 {[%clk 0:00:08]}  Rxf3 {[%clk 0:00:17]} 30. Re7 {[%clk 0:00:09]}  Rf7 {[%clk 0:00:16]} 31. Re8+ {[%clk 0:00:09]}  Rf8 {[%clk 0:00:15]} 32. Re7 {[%clk 0:00:09]}  Rf7 {[%clk 0:00:16]} 33. Re8+ {[%clk 0:00:09]}  Kh7 {[%clk 0:00:16]} 34. e5 {[%clk 0:00:08]}  Rxf2 {[%clk 0:00:11]} 35. e6 {[%clk 0:00:08]}  Re2 {[%clk 0:00:11]} 36. e7 {[%clk 0:00:08]}  Nf6 {[%clk 0:00:11]} 37. Ra8 {[%clk 0:00:06]}  Rxe7 {[%clk 0:00:10]} 38. Rxa7 {[%clk 0:00:07]}  Nd5 {[%clk 0:00:10]} 39. Nd2 {[%clk 0:00:07]}  b5 {[%clk 0:00:09]} 40. Nb3 {[%clk 0:00:07]}  Rxa7 {[%clk 0:00:10]} 41. Nc5 {[%clk 0:00:07]}  Ra2 {[%clk 0:00:09]} 42. g4 {[%clk 0:00:07]}  b4 {[%clk 0:00:09]} 43. g5 {[%clk 0:00:08]}  Ne3 {[%clk 0:00:10]} 44. g6+ {[%clk 0:00:08]}  Kxg6 {[%clk 0:00:10]} 45. Kh1 {[%clk 0:00:08]}  Rc2 {[%clk 0:00:09]} 46. Nb3 {[%clk 0:00:08]}  c5 {[%clk 0:00:09]} 47. Na5 {[%clk 0:00:07]}  c4 {[%clk 0:00:09]} 48. Nc6 {[%clk 0:00:08]}  b3 {[%clk 0:00:09]} 49. Ne5+ {[%clk 0:00:09]}  Kh7 {[%clk 0:00:10]} 50. Nf3 {[%clk 0:00:09]}  b2 {[%clk 0:00:10]} 51. Ne1 {[%clk 0:00:10]}  b1=Q {[%clk 0:00:10]} 52. Kg1 {[%clk 0:00:10]}  Qxe1# {[%clk 0:00:10]} 0-1


[Site "https://www.chess.com"]

[Event "Titled Tuesday Blitz December 27 Late 2022"]
[White "Martinez Alcantara, Jose Eduardo"]
[Black "Pakleza, Zbigniew"]
[WhiteFideId "3805662"]
[BlackFideId "1119290"]
[WhiteElo "2619"]
[BlackElo "2494"]
[Result "1-0"]
[Round "03"]
[TimeControl "180+2"]
[Date "2022.12.27"]
[WhiteClock "0:00:34"]
[BlackClock "0:00:08"]

1. e4 {[%clk 0:03:00]}  d6 {[%clk 0:03:00]} 2. d4 {[%clk 0:03:00]}  Nf6 {[%clk 0:03:00]} 3. Bd3 {[%clk 0:03:01]}  e5 {[%clk 0:03:01]} 4. c3 {[%clk 0:03:01]}  d5 {[%clk 0:03:01]} 5. dxe5 {[%clk 0:03:00]}  dxe4 {[%clk 0:03:02]} 6. Bb5+ {[%clk 0:02:55]}  c6 {[%clk 0:03:02]} 7. Qxd8+ {[%clk 0:02:53]}  Kxd8 {[%clk 0:03:03]} 8. exf6 {[%clk 0:02:52]}  cxb5 {[%clk 0:03:04]} 9. fxg7 {[%clk 0:02:52]}  Bxg7 {[%clk 0:03:04]} 10. Nd2 {[%clk 0:02:52]}  Bf5 {[%clk 0:02:56]} 11. Ne2 {[%clk 0:02:51]}  Re8 {[%clk 0:02:52]} 12. Nb3 {[%clk 0:02:44]}  Nc6 {[%clk 0:02:44]} 13. Bf4 {[%clk 0:02:43]}  b6 {[%clk 0:02:18]} 14. O-O {[%clk 0:02:37]}  Ke7 {[%clk 0:02:05]} 15. Ng3 {[%clk 0:02:34]}  Bg6 {[%clk 0:02:05]} 16. Rae1 {[%clk 0:02:27]}  Kf8 {[%clk 0:01:57]} 17. Nd2 {[%clk 0:02:27]}  f5 {[%clk 0:01:42]} 18. f3 {[%clk 0:02:26]}  exf3 {[%clk 0:01:41]} 19. Nxf3 {[%clk 0:02:27]}  Rxe1 {[%clk 0:01:25]} 20. Rxe1 {[%clk 0:02:28]}  Re8 {[%clk 0:01:25]} 21. Rd1 {[%clk 0:02:25]}  Ne5 {[%clk 0:00:43]} 22. Nxe5 {[%clk 0:01:12]}  Bxe5 {[%clk 0:00:44]} 23. Bxe5 {[%clk 0:01:03]}  Rxe5 {[%clk 0:00:45]} 24. Rd4 {[%clk 0:01:02]}  Ke7 {[%clk 0:00:42]} 25. Kf2 {[%clk 0:01:01]}  a5 {[%clk 0:00:42]} 26. Ne2 {[%clk 0:01:00]}  Bf7 {[%clk 0:00:40]} 27. a3 {[%clk 0:00:55]}  Bc4 {[%clk 0:00:34]} 28. Nf4 {[%clk 0:00:55]}  Rc5 {[%clk 0:00:24]} 29. Rd2 {[%clk 0:00:49]}  Bf7 {[%clk 0:00:23]} 30. Ne2 {[%clk 0:00:46]}  Be6 {[%clk 0:00:12]} 31. Nd4 {[%clk 0:00:46]}  Bd7 {[%clk 0:00:13]} 32. Ke3 {[%clk 0:00:44]}  Rc4 {[%clk 0:00:12]} 33. g3 {[%clk 0:00:38]}  b4 {[%clk 0:00:10]} 34. axb4 {[%clk 0:00:38]}  axb4 {[%clk 0:00:11]} 35. Kd3 {[%clk 0:00:39]}  b5 {[%clk 0:00:12]} 36. cxb4 {[%clk 0:00:36]}  Rxb4 {[%clk 0:00:12]} 37. b3 {[%clk 0:00:37]}  Be6 {[%clk 0:00:08]} 38. Nc6+ {[%clk 0:00:34]} 1-0


[Site "https://www.chess.com"]

[Event "Titled Tuesday Blitz December 27 Late 2022"]
[White "Matinian, Nikita"]
[Black "Steinberg, Nitzan"]
[WhiteFideId "24129100"]
[BlackFideId "2801795"]
[WhiteElo "2407"]
[BlackElo "2546"]
[Result "1-0"]
[Round "03"]
[TimeControl "180+2"]
[Date "2022.12.27"]
[WhiteClock "0:00:03"]
[BlackClock "0:00:02"]

1. e4 {[%clk 0:03:00]}  c5 {[%clk 0:02:57]} 2. Nf3 {[%clk 0:03:00]}  e6 {[%clk 0:02:58]} 3. d4 {[%clk 0:03:01]}  cxd4 {[%clk 0:02:59]} 4. Nxd4 {[%clk 0:03:02]}  Nc6 {[%clk 0:02:59]} 5. Nc3 {[%clk 0:03:02]}  Qc7 {[%clk 0:03:00]} 6. Be2 {[%clk 0:03:01]}  a6 {[%clk 0:03:00]} 7. O-O {[%clk 0:03:01]}  Nf6 {[%clk 0:03:01]} 8. Bg5 {[%clk 0:02:41]}  Be7 {[%clk 0:02:59]} 9. Kh1 {[%clk 0:02:37]}  Ng4 {[%clk 0:02:47]} 10. Bxg4 {[%clk 0:02:26]}  Bxg5 {[%clk 0:02:47]} 11. Nxc6 {[%clk 0:02:23]}  dxc6 {[%clk 0:02:38]} 12. g3 {[%clk 0:02:14]}  Bf6 {[%clk 0:02:20]} 13. f4 {[%clk 0:02:14]}  e5 {[%clk 0:02:10]} 14. Bxc8 {[%clk 0:01:52]}  Rxc8 {[%clk 0:02:10]} 15. f5 {[%clk 0:01:48]}  h5 {[%clk 0:01:57]} 16. Qf3 {[%clk 0:01:48]}  Qb6 {[%clk 0:01:49]} 17. Nd1 {[%clk 0:01:48]}  Rd8 {[%clk 0:01:47]} 18. b3 {[%clk 0:01:45]}  h4 {[%clk 0:01:48]} 19. g4 {[%clk 0:01:42]}  h3 {[%clk 0:01:48]} 20. Nf2 {[%clk 0:01:38]}  Rd2 {[%clk 0:01:45]} 21. Nxh3 {[%clk 0:01:33]}  Qd4 {[%clk 0:01:06]} 22. c3 {[%clk 0:01:24]}  Qd6 {[%clk 0:00:55]} 23. Nf2 {[%clk 0:01:07]}  Bg5 {[%clk 0:00:50]} 24. Kg2 {[%clk 0:01:00]}  Ke7 {[%clk 0:00:43]} 25. Rad1 {[%clk 0:00:57]}  Rd8 {[%clk 0:00:35]} 26. Rxd2 {[%clk 0:00:45]}  Qxd2 {[%clk 0:00:36]} 27. Rd1 {[%clk 0:00:42]}  Qxa2 {[%clk 0:00:36]} 28. Rxd8 {[%clk 0:00:42]}  Kxd8 {[%clk 0:00:37]} 29. Qd1+ {[%clk 0:00:37]}  Ke7 {[%clk 0:00:34]} 30. Kf1 {[%clk 0:00:10]}  Bh4 {[%clk 0:00:30]} 31. Qe2 {[%clk 0:00:06]}  Qxb3 {[%clk 0:00:29]} 32. Nd1 {[%clk 0:00:05]}  a5 {[%clk 0:00:27]} 33. Kg2 {[%clk 0:00:04]}  a4 {[%clk 0:00:27]} 34. Qd3 {[%clk 0:00:02]}  a3 {[%clk 0:00:25]} 35. f6+ {[%clk 0:00:03]}  gxf6 {[%clk 0:00:23]} 36. Ne3 {[%clk 0:00:04]}  Qe6 {[%clk 0:00:10]} 37. Nf5+ {[%clk 0:00:04]}  Kf8 {[%clk 0:00:09]} 38. Qd8+ {[%clk 0:00:04]}  Qe8 {[%clk 0:00:09]} 39. Qd6+ {[%clk 0:00:04]}  Kg8 {[%clk 0:00:09]} 40. Qxa3 {[%clk 0:00:04]}  Bg5 {[%clk 0:00:09]} 41. Qd6 {[%clk 0:00:03]}  Qe6 {[%clk 0:00:06]} 42. Qd8+ {[%clk 0:00:03]}  Kh7 {[%clk 0:00:07]} 43. Qf8 {[%clk 0:00:03]}  Qa2+ {[%clk 0:00:02]} 44. Kh3 {[%clk 0:00:03]} 1-0


[Site "https://www.chess.com"]

[Event "Titled Tuesday Blitz December 27 Late 2022"]
[White "Mesa Cruz, Juan Carlos"]
[Black "Grigorov, Grigor"]
[WhiteFideId "6423400"]
[BlackFideId "2907313"]
[WhiteElo "2122"]
[BlackElo "2510"]
[Result "0-1"]
[Round "03"]
[TimeControl "180+2"]
[Date "2022.12.27"]
[WhiteClock "0:00:02"]
[BlackClock "0:01:13"]

1. e4 {[%clk 0:02:57]}  c6 {[%clk 0:03:00]} 2. Nc3 {[%clk 0:02:56]}  d5 {[%clk 0:03:00]} 3. Nf3 {[%clk 0:02:56]}  dxe4 {[%clk 0:03:00]} 4. Nxe4 {[%clk 0:02:55]}  Nf6 {[%clk 0:03:01]} 5. Qe2 {[%clk 0:02:55]}  Nxe4 {[%clk 0:03:01]} 6. Qxe4 {[%clk 0:02:49]}  Be6 {[%clk 0:03:01]} 7. Ng5 {[%clk 0:02:17]}  Bd5 {[%clk 0:02:57]} 8. Qh4 {[%clk 0:02:11]}  c5 {[%clk 0:02:00]} 9. Bb5+ {[%clk 0:02:02]}  Nc6 {[%clk 0:01:54]} 10. O-O {[%clk 0:02:01]}  a6 {[%clk 0:01:49]} 11. Be2 {[%clk 0:01:49]}  Nd4 {[%clk 0:01:39]} 12. Bd1 {[%clk 0:01:49]}  h6 {[%clk 0:01:38]} 13. c3 {[%clk 0:01:44]}  Nf5 {[%clk 0:01:37]} 14. Qf4 {[%clk 0:01:42]}  e6 {[%clk 0:01:33]} 15. Nf3 {[%clk 0:01:18]}  Bd6 {[%clk 0:01:33]} 16. Qa4+ {[%clk 0:01:18]}  b5 {[%clk 0:01:32]} 17. Qc2 {[%clk 0:01:19]}  c4 {[%clk 0:01:31]} 18. Be2 {[%clk 0:01:09]}  Qc7 {[%clk 0:01:28]} 19. h3 {[%clk 0:01:06]}  O-O {[%clk 0:01:26]} 20. b3 {[%clk 0:01:02]}  Rad8 {[%clk 0:01:24]} 21. bxc4 {[%clk 0:01:01]}  bxc4 {[%clk 0:01:24]} 22. a4 {[%clk 0:00:50]}  Bc5 {[%clk 0:01:19]} 23. Ba3 {[%clk 0:00:48]}  Ng3 {[%clk 0:01:18]} 24. Qd1 {[%clk 0:00:02]}  Nxf1 {[%clk 0:01:17]} 25. Bxf1 {[%clk 0:00:03]}  Bxa3 {[%clk 0:01:13]} 26. Rxa3 {[%clk 0:00:02]}  Rb8 {[%clk 0:01:13]} 0-1


[Site "https://www.chess.com"]

[Event "Titled Tuesday Blitz December 27 Late 2022"]
[White "Moral Garcia, Serafin"]
[Black "Freile Martin, Javier"]
[WhiteFideId "2201925"]
[BlackFideId "3600165"]
[WhiteElo "2238"]
[BlackElo "2329"]
[Result "1-0"]
[Round "03"]
[TimeControl "180+2"]
[Date "2022.12.27"]
[WhiteClock "0:00:31"]
[BlackClock "0:00:17"]

1. c4 {[%clk 0:03:00]}  Nf6 {[%clk 0:02:56]} 2. Nc3 {[%clk 0:02:58]}  g6 {[%clk 0:02:56]} 3. g3 {[%clk 0:02:57]}  Bg7 {[%clk 0:02:56]} 4. Bg2 {[%clk 0:02:58]}  O-O {[%clk 0:02:55]} 5. d3 {[%clk 0:02:57]}  d6 {[%clk 0:02:55]} 6. Rb1 {[%clk 0:02:54]}  Nbd7 {[%clk 0:02:54]} 7. e3 {[%clk 0:02:51]}  e5 {[%clk 0:02:53]} 8. Nf3 {[%clk 0:02:51]}  Re8 {[%clk 0:02:53]} 9. O-O {[%clk 0:02:51]}  e4 {[%clk 0:02:51]} 10. dxe4 {[%clk 0:02:51]}  Nxe4 {[%clk 0:02:51]} 11. Nxe4 {[%clk 0:02:50]}  Rxe4 {[%clk 0:02:52]} 12. b3 {[%clk 0:02:49]}  Ne5 {[%clk 0:02:47]} 13. Nd4 {[%clk 0:02:36]}  Rg4 {[%clk 0:02:33]} 14. f3 {[%clk 0:02:36]}  Rxd4 {[%clk 0:02:18]} 15. exd4 {[%clk 0:02:35]}  Nc6 {[%clk 0:02:17]} 16. Bb2 {[%clk 0:02:30]}  Bf5 {[%clk 0:02:13]} 17. Rc1 {[%clk 0:02:24]}  Nb4 {[%clk 0:02:12]} 18. g4 {[%clk 0:02:08]}  Bd7 {[%clk 0:02:09]} 19. a3 {[%clk 0:02:06]}  Nc6 {[%clk 0:02:09]} 20. Qd2 {[%clk 0:02:03]}  Qh4 {[%clk 0:02:06]} 21. Rce1 {[%clk 0:01:58]}  Bh6 {[%clk 0:01:46]} 22. Qf2 {[%clk 0:01:48]}  Qd8 {[%clk 0:01:25]} 23. d5 {[%clk 0:01:21]}  Ne5 {[%clk 0:01:15]} 24. Bxe5 {[%clk 0:01:12]}  dxe5 {[%clk 0:01:14]} 25. Rxe5 {[%clk 0:01:12]}  Bf4 {[%clk 0:01:07]} 26. Re4 {[%clk 0:01:12]}  Qf6 {[%clk 0:01:01]} 27. Rfe1 {[%clk 0:01:06]}  b6 {[%clk 0:00:47]} 28. Qd4 {[%clk 0:01:02]}  Qh4 {[%clk 0:00:34]} 29. h3 {[%clk 0:00:54]}  Bd6 {[%clk 0:00:31]} 30. b4 {[%clk 0:00:45]}  Qg3 {[%clk 0:00:27]} 31. Qf2 {[%clk 0:00:31]}  Qh2+ {[%clk 0:00:26]} 32. Kf1 {[%clk 0:00:32]}  Bg3 {[%clk 0:00:26]} 33. Qg1 {[%clk 0:00:32]}  Qxg1+ {[%clk 0:00:25]} 34. Kxg1 {[%clk 0:00:33]}  Bxe1 {[%clk 0:00:25]} 35. Rxe1 {[%clk 0:00:33]}  Re8 {[%clk 0:00:22]} 36. Rxe8+ {[%clk 0:00:32]}  Bxe8 {[%clk 0:00:23]} 37. f4 {[%clk 0:00:31]}  Kf8 {[%clk 0:00:23]} 38. Kf2 {[%clk 0:00:31]}  Ke7 {[%clk 0:00:23]} 39. Ke3 {[%clk 0:00:32]}  Kd6 {[%clk 0:00:23]} 40. Kd4 {[%clk 0:00:32]}  c5+ {[%clk 0:00:22]} 41. dxc6 {[%clk 0:00:32]}  Bxc6 {[%clk 0:00:20]} 42. Bxc6 {[%clk 0:00:31]}  Kxc6 {[%clk 0:00:21]} 43. Ke5 {[%clk 0:00:32]}  a5 {[%clk 0:00:19]} 44. Kf6 {[%clk 0:00:31]}  axb4 {[%clk 0:00:17]} 45. axb4 {[%clk 0:00:31]}  b5 {[%clk 0:00:17]} 46. cxb5+ {[%clk 0:00:31]}  Kxb5 {[%clk 0:00:17]} 47. Kxf7 {[%clk 0:00:31]}  Kxb4 {[%clk 0:00:17]} 48. Kg7 {[%clk 0:00:31]} 1-0


[Site "https://www.chess.com"]

[Event "Titled Tuesday Blitz December 27 Late 2022"]
[White "Moreno Perez, Tobias Sebastian"]
[Black "Korchmar, Vasiliy"]
[WhiteFideId "186716"]
[BlackFideId "24131750"]
[WhiteElo "2256"]
[BlackElo "2438"]
[Result "0-1"]
[Round "03"]
[TimeControl "180+2"]
[Date "2022.12.27"]
[WhiteClock "0:00:10"]
[BlackClock "0:01:11"]

1. d4 {[%clk 0:03:00]}  Nf6 {[%clk 0:02:59]} 2. Bf4 {[%clk 0:03:01]}  d5 {[%clk 0:03:00]} 3. e3 {[%clk 0:03:01]}  c5 {[%clk 0:03:00]} 4. c3 {[%clk 0:03:01]}  Nc6 {[%clk 0:03:00]} 5. Nd2 {[%clk 0:03:01]}  Bf5 {[%clk 0:02:57]} 6. Ngf3 {[%clk 0:02:59]}  Qb6 {[%clk 0:02:54]} 7. Qb3 {[%clk 0:02:42]}  c4 {[%clk 0:02:55]} 8. Qxb6 {[%clk 0:02:42]}  axb6 {[%clk 0:02:56]} 9. a3 {[%clk 0:02:43]}  e6 {[%clk 0:02:56]} 10. Rc1 {[%clk 0:02:43]}  h6 {[%clk 0:02:56]} 11. h3 {[%clk 0:02:43]}  b5 {[%clk 0:02:55]} 12. Be2 {[%clk 0:02:43]}  Nd7 {[%clk 0:02:55]} 13. O-O {[%clk 0:02:38]}  Nb6 {[%clk 0:02:55]} 14. Bd1 {[%clk 0:02:32]}  Na4 {[%clk 0:02:52]} 15. Bxa4 {[%clk 0:02:31]}  bxa4 {[%clk 0:02:53]} 16. Rfe1 {[%clk 0:02:27]}  Be7 {[%clk 0:02:50]} 17. e4 {[%clk 0:02:25]}  Bh7 {[%clk 0:02:50]} 18. exd5 {[%clk 0:02:20]}  exd5 {[%clk 0:02:51]} 19. Bd6 {[%clk 0:02:21]}  f6 {[%clk 0:02:45]} 20. Bxe7 {[%clk 0:01:46]}  Nxe7 {[%clk 0:02:46]} 21. Re6 {[%clk 0:01:46]}  Kd7 {[%clk 0:02:40]} 22. Rce1 {[%clk 0:01:41]}  Nc6 {[%clk 0:02:40]} 23. R6e3 {[%clk 0:01:11]}  Ra5 {[%clk 0:02:37]} 24. Nf1 {[%clk 0:01:11]}  Rb5 {[%clk 0:02:36]} 25. R1e2 {[%clk 0:01:08]}  Ra8 {[%clk 0:02:35]} 26. Ng3 {[%clk 0:00:58]}  Bg6 {[%clk 0:01:57]} 27. Nh4 {[%clk 0:00:58]}  Bd3 {[%clk 0:01:58]} 28. Rd2 {[%clk 0:00:56]}  g6 {[%clk 0:01:55]} 29. Ne2 {[%clk 0:00:39]}  g5 {[%clk 0:01:50]} 30. Nf3 {[%clk 0:00:36]}  Ra6 {[%clk 0:01:41]} 31. Nc1 {[%clk 0:00:28]}  Bb1 {[%clk 0:01:42]} 32. Nh2 {[%clk 0:00:19]}  Rab6 {[%clk 0:01:41]} 33. Ree2 {[%clk 0:00:19]}  Na5 {[%clk 0:01:32]} 34. Nf1 {[%clk 0:00:18]}  Nb3 {[%clk 0:01:13]} 35. Nxb3 {[%clk 0:00:18]}  Rxb3 {[%clk 0:01:13]} 36. Ne3 {[%clk 0:00:17]}  Bd3 {[%clk 0:01:10]} 37. Nxd5 {[%clk 0:00:14]}  Rd6 {[%clk 0:01:10]} 38. Re7+ {[%clk 0:00:10]}  Kd8 {[%clk 0:01:11]} 0-1


[Site "https://www.chess.com"]

[Event "Titled Tuesday Blitz December 27 Late 2022"]
[White "Movahed, Sina"]
[Black "Bjelobrk, Igor"]
[WhiteFideId "42520835"]
[BlackFideId "4300726"]
[WhiteElo "2340"]
[BlackElo "2403"]
[Result "1-0"]
[Round "03"]
[TimeControl "180+2"]
[Date "2022.12.27"]
[WhiteClock "0:00:57"]
[BlackClock "0:00:32"]

1. e4 {[%clk 0:03:00]}  e5 {[%clk 0:02:58]} 2. Nf3 {[%clk 0:03:01]}  Nc6 {[%clk 0:02:57]} 3. Bb5 {[%clk 0:03:01]}  a6 {[%clk 0:02:57]} 4. Ba4 {[%clk 0:03:00]}  Bc5 {[%clk 0:02:56]} 5. O-O {[%clk 0:03:01]}  Nge7 {[%clk 0:02:55]} 6. c3 {[%clk 0:03:00]}  Ng6 {[%clk 0:02:53]} 7. d4 {[%clk 0:02:59]}  Ba7 {[%clk 0:02:53]} 8. d5 {[%clk 0:02:59]}  Nce7 {[%clk 0:02:52]} 9. d6 {[%clk 0:03:00]}  cxd6 {[%clk 0:02:50]} 10. c4 {[%clk 0:02:49]}  Qc7 {[%clk 0:02:42]} 11. Nc3 {[%clk 0:02:46]}  O-O {[%clk 0:02:35]} 12. h4 {[%clk 0:02:45]}  f6 {[%clk 0:02:11]} 13. h5 {[%clk 0:02:36]}  Nh8 {[%clk 0:02:11]} 14. Qe2 {[%clk 0:02:30]}  Nf7 {[%clk 0:02:10]} 15. Rd1 {[%clk 0:02:27]}  Kh8 {[%clk 0:01:56]} 16. Nh4 {[%clk 0:02:24]}  Bd4 {[%clk 0:01:45]} 17. Nd5 {[%clk 0:02:15]}  Nxd5 {[%clk 0:01:45]} 18. cxd5 {[%clk 0:02:16]}  Re8 {[%clk 0:01:11]} 19. Rd3 {[%clk 0:01:56]}  b5 {[%clk 0:01:07]} 20. Bb3 {[%clk 0:01:53]}  Bb7 {[%clk 0:01:07]} 21. Bd2 {[%clk 0:01:41]}  Qb6 {[%clk 0:00:58]} 22. Rf1 {[%clk 0:01:35]}  Ng5 {[%clk 0:00:52]} 23. Nf5 {[%clk 0:01:24]}  Rac8 {[%clk 0:00:45]} 24. Qg4 {[%clk 0:01:17]}  h6 {[%clk 0:00:45]} 25. Kh2 {[%clk 0:01:11]}  Bxf2 {[%clk 0:00:41]} 26. Bxg5 {[%clk 0:01:02]}  fxg5 {[%clk 0:00:41]} 27. Rf3 {[%clk 0:01:02]}  Bc5 {[%clk 0:00:37]} 28. Nxg7 {[%clk 0:01:00]}  Be3 {[%clk 0:00:32]} 29. Nf5 {[%clk 0:00:56]}  Bf4+ {[%clk 0:00:32]} 30. g3 {[%clk 0:00:57]} 1-0


[Site "https://www.chess.com"]